Cogmind - Beta 10.2 @@@ ROGUE MODE // 2021.03.16 @ 16:47:15 Player: Robbedoes Result: Self-destructed Performance ------------- Evolutions (1) 500 Regions Visited (2) 400 Robots Destroyed (10) 50 Value Destroyed (138) 138 Prototype IDs (0) 0 Alien Tech Used (0) 0 Bonus (0) 0 TOTAL SCORE: 1088 Bonus ------- None Cogmind --------- Core Integrity 400/400 Matter 275/300 Energy 125/125 System Corruption 0% Temperature Cool (0) Movement Walking (120) Location -9/Materials Parts ------- > --- POWER (1) -------- Light Ion Engine > --- PROPULSION (2) --- Aluminum Leg Aluminum Leg > --- UTILITY (4) ------ Heat Sink Small Storage Unit Small Storage Unit Improved Sensor Array > --- WEAPON (2) ------- EM Pulse Gun > --- INVENTORY (8) ---- Light Ion Engine Light Treads Light Treads Compact Wheel Compact Wheel Heat Sink Light Assault Rifle Peak State ------------ > --- POWER ------------ Light Ion Engine > --- PROPULSION ------- Aluminum Leg Aluminum Leg > --- UTILITY ---------- Heat Sink Small Storage Unit Small Storage Unit Improved Sensor Array > --- WEAPON ----------- EM Pulse Gun EM Pulse Gun > --- INVENTORY -------- Light Ion Engine Light Treads Light Treads Compact Wheel Compact Wheel Heat Sink Light Assault Rifle [Rating: 10] Favorites ----------- Power Light Ion Engine Engine Light Ion Engine Propulsion Aluminum Leg Leg Aluminum Leg Utility Small Storage Unit Device Heat Sink Storage Small Storage Unit Weapon EM Pulse Gun Energy Gun EM Pulse Gun Build | -11 -10 -9 ------- Run | Scr Mat Mat Slots Evolved 2 | . . 2 Power . | . . . Propulsion . | . . . Utility 2 | . . 2 Weapon . | . . . Parts Attached 4 | 1 . 3 Power . | . . . Engine . | . . . Core . | . . . Reactor . | . . . Propulsion . | . . . Treads . | . . . Leg . | . . . Wheel . | . . . Hover . | . . . Flight . | . . . Utility 4 | 1 . 3 Device 3 | . . 3 Storage 1 | 1 . . Processor . | . . . Hackware . | . . . Protection . | . . . Artifact . | . . . Weapon . | . . . Energy Gun . | . . . Energy Cannon . | . . . Ballistic Gun . | . . . Ballistic Cannon . | . . . Launcher . | . . . Special Weapon . | . . . Impact Weapon . | . . . Slashing Weapon . | . . . Piercing Weapon . | . . . Special Melee Weapon . | . . . Unidentified Prototypes . | . . . Parts Lost 1 | . . 1 Power . | . . . Propulsion . | . . . Utility . | . . . Weapon 1 | . . 1 Highest Loss Streak 1 | . . 1 Average Slot Usage (%) 100 | . 100 100 Engine 13 | . 14 11 Leg 26 | . 28 22 Device 5 | . . 22 Storage 26 | . 28 22 Energy Gun 26 | . 28 22 Naked Turns . | . . . Heaviest Build 17 | 15 15 17 Greatest Support 20 | 20 20 20 Greatest Overweight (x) . | . . . Average Overweight (x) . | . . . Largest Inventory Capacity 8 | 8 8 8 Average Capacity 7 | 7 8 8 Most Carried 8 | 6 8 7 Average Carried 6 | 6 6 6 Final Capacity 8 | 8 8 8 Final Carried 8 | 6 8 7 Class Distribution -------------------- 100% | Mutant Dominant Class ---------------- Mutant | -10/Materials Mutant | -9/Materials Resources | -11 -10 -9 ----------- Run | Scr Mat Mat Matter Collected 210 | 210 . . Remotely . | . . . Salvage Created 418 | 118 300 . Parts 21 | 2 19 . Haulers Intercepted . | . . . Recyclers Shooed 1 | . 1 . Parts Field Recycled . | . . . Retrieved Matter . | . . . Parts Self-Destructed . | . . . Prevented . | . . . Kills | -11 -10 -9 ------- Run | Scr Mat Mat Combat Hostiles Destroyed 2 | . 2 . Guns 2 | . 2 . Classes Destroyed 6 | 2 4 . Worker 2 | . 2 . Builder 2 | . 2 . Tunneler 1 | 1 . . Recycler 2 | 1 1 . Watcher 1 | . 1 . Grunt 2 | . 2 . Best Kill Streak 3 | 1 3 . Combat Bots Only 2 | . 2 . Max Kills in Single Turn 1 | 1 1 . Gunslinging . | . . . Exploded . | . . . Melee . | . . . Uniques/NPCs Destroyed . | . . . Combat | -11 -10 -9 -------- Run | Scr Mat Mat Damage Taken 208 | . 142 66 Core 69 | . 69 . Absorbed by Shields . | . . . Core Remaining (%) 86 | 100 72 . Volleys Fired 24 | 8 16 . Largest 2 | 2 2 . Hottest 80 | 80 80 . Shots Fired 48 | 16 32 . Gun 48 | 16 32 . Cannon . | . . . Launcher . | . . . Special . | . . . Kinetic . | . . . Thermal . | . . . Explosive . | . . . Electromagnetic 48 | 16 32 . Robot Hit Streak 8 | 8 7 . Robot Miss Streak 1 | 1 1 . Penetration Max . | . . . Secondary Targets . | . . . Shots Hit Robots 36 | 14 22 . Core Hits 15 | 2 13 . Critical Hits . | . . . Critical Kills . | . . . Critical Parts Destroyed . | . . . Melee Attacks . | . . . Impact . | . . . Slashing . | . . . Piercing . | . . . Sneak Attacks . | . . . Combat Hostiles . | . . . Follow-up Attacks . | . . . Damage Inflicted 735 | 237 498 . Guns 490 | 161 329 . Cannons . | . . . Explosions 245 | 76 169 . Melee . | . . . Ramming . | . . . Kinetic . | . . . Thermal 245 | 76 169 . Explosive . | . . . Electromagnetic 490 | 161 329 . Impact . | . . . Slashing . | . . . Piercing . | . . . Highest Corruption 1 | . 1 . Average Corruption 1 | . 1 . Corruption Purged . | . . . Effects 1 | . 1 . Data Loss (minor) 1 | . 1 . Overload Shots . | . . . Overflow Damage 20 | 4 16 . Projectiles . | . . . Explosions 20 | 4 16 . Melee . | . . . Knockbacks . | . . . Impact . | . . . Kinetic . | . . . Secondary . | . . . Self-Inflicted Damage 52 | . 52 . Shots 1 | . 1 . Rammed . | . . . Targets Rammed . | . . . Kicked . | . . . Crushed . | . . . Highest Temperature 186 | 72 186 . Average Temperature 53 | 32 63 . Received Heat Transfer 84 | . 48 36 Siege Activations . | . . . Robots Corrupted 1 | 1 . . Combat Hostiles . | . . . Parts Fried 2 | 1 1 . Impact Corruptions . | . . . Robots Melted . | . . . Combat Hostiles . | . . . Parts Melted 1 | . 1 . Heat Transferred 200 | 50 150 . Parts Sabotaged . | . . . Parts Stolen . | . . . Parts Stripped . | . . . Power Chain Reactions 5 | 2 3 . Missiles Intercepted . | . . . Alert | -11 -10 -9 ------- Run | Scr Mat Mat Peak Influence 107 | 10 107 51 Initial 51 | . 6 51 Average 52 | 6 61 50 Maximum Alert Level . | . . . Low Security (%) 100 | 100 100 100 Level 1 . | . . . Level 2 . | . . . Level 3 . | . . . Level 4 . | . . . Level 5 . | . . . High Security . | . . . Max Security . | . . . Squads Dispatched . | . . . Investigation . | . . . Extermination . | . . . Reinforcement . | . . . Assault . | . . . Garrison . | . . . Intercept . | . . . Construction Impeded . | . . . Haulers Reinforced . | . . . Stealth | -11 -10 -9 --------- Run | Scr Mat Mat Distress Signals . | . . . Communications Jammed . | . . . Distress Signals . | . . . Times Spotted 12 | . 6 6 Peak Tracking Total 6 | . 3 6 Tactical Retreats . | . . . Traps | -11 -10 -9 ------- Run | Scr Mat Mat Traps Triggered 1 | . 1 . Indirectly . | . . . Trap Hack Attempts . | . . . Triggered . | . . . Disarmed . | . . . Reprogrammed . | . . . Reused . | . . . Traps Extracted . | . . . Installed . | . . . Triggered . | . . . Machines | -11 -10 -9 ---------- Run | Scr Mat Mat Machines Disabled 1 | . 1 . Max in Single Turn 1 | . 1 . Machines Sabotaged . | . . . Garrisons Compromised . | . . . Overloaded Fab Kills . | . . . Fab Network Shutdowns . | . . . Hacking | -11 -10 -9 --------- Run | Scr Mat Mat Machines Accessed 2 | . 2 . Terminals 2 | . 2 . Fabricators . | . . . Repair Stations . | . . . Recycling Units . | . . . Scanalyzers . | . . . Garrison Access . | . . . Total Hacks 6 | . 6 . Successful 2 | . 2 . Failed 4 | . 4 . Catastrophic . | . . . Database Lockouts . | . . . Manual . | . . . Terminals 6 | . 6 . Fabricators . | . . . Repair Stations . | . . . Recycling Units . | . . . Scanalyzers . | . . . Garrison Access . | . . . Terminal Hacks 2 | . 2 . Alert Level 1 | . 1 . Locate Traps 1 | . 1 . Fabricator Hacks . | . . . Repair Station Hacks . | . . . Recycling Unit Hacks . | . . . Scanalyzer . | . . . Garrison Access Hacks . | . . . Unauthorized Hacks . | . . . Terminals . | . . . Fabricators . | . . . Repair Stations . | . . . Recycling Units . | . . . Scanalyzers . | . . . Garrison Access . | . . . Data Cores Recovered . | . . . Used . | . . . Hacking Detections 1 | . 1 . Full Trace Events . | . . . Feedback Events . | . . . Feedback Blocked . | . . . Robot Schematics Acquired . | . . . Robots Built . | . . . Matter . | . . . Time . | . . . Total Robot Build Rating . | . . . Part Schematics Acquired . | . . . Parts Built . | . . . Matter . | . . . Time . | . . . Total Part Build Rating . | . . . Parts Repaired . | . . . Time . | . . . Parts Recycled . | . . . Recycled Matter . | . . . Retrieved Matter . | . . . Retrieved Components . | . . . Parts Scanalyzed . | . . . Part Schematics Acquired . | . . . Parts Damaged . | . . . Bothacking | -11 -10 -9 ------------ Run | Scr Mat Mat Used RIF Installer . | . . . Robots Hacked . | . . . Non-combat . | . . . Combat . | . . . Robot Hacks Applied . | . . . Relay Couplers Released . | . . . Robots Rewired . | . . . Allies Hacked . | . . . Hacks Repelled . | . . . Allies | -11 -10 -9 -------- Run | Scr Mat Mat Total Allies . | . . . Largest Group . | . . . Highest-Rated Group . | . . . Highest-Rated Ally . | . . . Total Orders . | . . . Ally Attacks . | . . . Total Damage . | . . . Kills . | . . . Allies Corrupted . | . . . Allies Melted . | . . . Intel | -11 -10 -9 ------- Run | Scr Mat Mat Robot Analysis Total . | . . . Derelict Logs Recovered . | . . . Drone Launches . | . . . Drone Recoveries . | . . . Exploration | -11 -10 -9 ------------- Run | Scr Mat Mat Turns Passed 384 | 46 255 83 Spaces Moved 238 | 17 156 65 Core . | . . . Treads . | . . . Legs 238 | 17 156 65 Wheels . | . . . Hover . | . . . Flight . | . . . Fastest Speed 120 | 120 120 120 Average Speed 120 | 120 120 120 Slowest Speed 120 | 120 120 120 Overloaded Moves . | . . . Propulsion Burnouts . | . . . Robots Hopped . | . . . Cave-ins Triggered . | . . . Exploration Rate (%) 15 | 3 33 9 Regions Visited 2 Branch Regions . Pre-discovered Areas . | . . . Known Exits Taken . | . . . Unknown Exits Taken 2 | 1 1 . Scrap Searched . | . . . Spaces Dug . | . . . Terrain Destroyed 15 | 6 9 . Melee . | . . . Projectile . | . . . AOE 15 | 6 9 . Terrain Rammed . | . . . Walls Destroyed . | . . . Machines Disabled . | . . . Actions | -11 -10 -9 --------- Run | Scr Mat Mat Total 287 | 26 192 69 Wait 20 | 1 19 . Move 236 | 16 155 65 Hop . | . . . Pick Up 3 | . 2 1 Fast Attach 1 | 1 . . Attach 2 | . . 2 Detach . | . . . Swap 1 | . . 1 Drop . | . . . Fire 24 | 8 16 . Melee . | . . . Ram . | . . . Kick . | . . . Crush . | . . . Escape Stasis . | . . . Rewire . | . . . Trap . | . . . Miscellaneous . | . . . Route ------- -11/Scrapyard -10/Materials -9/Materials History --------- Turn | Location | Event 5 | -11/Scrapyard | Discovered new exit (range 2) 47 | -11/Scrapyard | Entered Materials 132 | -10/Materials | Discovered new exit (range 15) 302 | -10/Materials | Entered another Materials area 302 | -9/Materials | Evolved 2 slots: Utility x2 341 | -9/Materials | Build established: Mutant 385 | -9/Materials | Self-destructed Last Messages --------------- 00289_ Connecting with Terminal... >>Alert(Check) Current Alert Level: Low Security >>Traps(Locate) Found 4 traps in 2 arrays: 1x EMP Trap 3x Shock Trap Map updated. 00290_ K-01 Serf cleans the Electrolysis Chamber. 00294_ K-01 Serf collects debris. 00297_ K-01 Serf cleans the Electrolysis Chamber. PARAMETERS=UTILITY_2 LOCATION=UNKNOWN GOAL=ESCAPE 00319_ Acquired Imp. Sensor Array. 00333_ T-07 Excavator is excavating. 00380_ K-01 Serf collects debris. 00382_ K-01 Serf cleans the Recycling Unit. 00383_ EM Pulse Gun destroyed. 00383_ Atomic Centrifuge disabled. Map ----- +----------------------------------------------------+ | ?????????????????????????????????????????????????? | | ?????????????????????????????????????????????????? | | ?????????????????????????????????????????????????? | | ?????????????????????????????????????????????????? | | ?????????????????????????????????????????????????? | | ?????????????????????????????????????????????????? | | ?????????????????????????????????????????????????? | | ?????????????????????????????????????????????????? | | ?????????????????????????????????????????????????? | | ?????????????????????????????????????????????????? | | ?????????????????????????????? ??????????????????? | | ?????????????????????????????? ?????????????????? | | ?????????????????????????????? ??????????????????? | | ????????????????#????###???### ?????????????????? | | ??????????????? ????? ?? ?! ??????????????????? | | ??????????????? ??? ?? ???? ?????????????? | | ???????????????? """ """ ?""" "?????????????? | | ???????????????? """ """ """ """ ?????????? | | ????????????????? """ """ """ """ ?????????? | | ????????????????? ??????????? | | ?????????????????# ??????????? | | ?????????????????# "" """ """ """ ?"????????? | | ?????????????????# k"Y """ """ """ ""???????? | | ?????????????????# "" """ " " """ """ ????? | | ?????????????????# g g ????? | | ?????????????????# g @ g ????? | | ???????????????# ########### ####/#??????????? | | ?????????????????????????????# #???????????????? | | ?????????????????????????????# #???????????????? | | ?????????????????????????????# #???????????????? | | ?????????????????????????????# #???????????????? | | ?????????????????????????????# #???????????????? | | ?????????????????????????????# #???????????????? | | ?????????????????????????????# #???????????????? | | ?????????????????????????????# #???????????????? | | ?????????????????????????????#? #???????????????? | | ?????????????????????????????# #???????????????? | | ?????????????"???????????????# #???????????????? | | ????????????""" ????????????# #???????????????? | | ????????????""" ########### #???????????????? | | ????????????""" #???????????????? | | ???????? #???????????????? | | ????????# #???????????????? | | ????????# """ ############ ###??????????????? | | ????????????""" ??????# # # #?????????????? | | ?????????????"?????????# """ + #??????????????? | | ???????????????????????# """ # # #??????????????? | | ???????????????????????# """ # ###??????????????? | | ???????????????????????# # #????????????????? | | ???????????????????????# # #????????????????? | +----------------------------------------------------+ Best States ------------- Heat Dissipation 48 Energy Generation 10 Energy Capacity 125 Matter Stores 300 Matter Capacity 300 Sight Range 16 Robot Scan Range 13 Terrain Scan Density 10 Evasion (%) 40 Item Schematics ----------------- None Robot Schematics ------------------ None Fabricated ------------ Nothing Alien Tech Used ----------------- None Achievements -------------- None Challenges ------------ None Game ------ Seed MissileReactionScythe Manual? 0 Play Time 00:04:35 Cumulative 13.4 hours Start 2021.03.16 @ 16:43:10 End 2021.03.16 @ 16:47:15 Sessions 1 Manual Loads 0 Difficulty Rogue Special Mode None Game No. 34 Rogue 34 Adventurer 0 Explorer 0 Win Type - Total 0 Types 0/0/0/0/0/0/0/0/0 Lore% 20 Gallery% 19 Achievement% 18 Wizard Run 0 Options --------- ASCII 0 Keyboard 0 Movement Numpad Keybinds 0 Fullscreen 2 Font 24/Terminus Map View 76x50 Tactical HUD 1 Map Filters NONE Filters NONE Steam 1 RUN: dbf2d83f-93d3-4e89-8065-091cf812db3d